bitfinex/quotes_ETHUSD_20250815
["timestamp","ask_amount","ask_price","bid_price","bid_amount"]
[1755242183140,0.9302,4642.7,4642.6,2.15396545]
[1755242185642,0.002,4642.8,4642.7,2.15391905]
[1755242186006,0.4656,4642.8,4642.7,2.15391905]
[1755242186936,0.002,4642.8,4642.7,2.15391905]
[1755242187631,0.4656,4642.8,4642.7,2.15391905]
[1755242187932,0.002,4642.8,4642.7,2.15391905]
[1755242190537,0.9322,4642.8,4642.7,2.15391905]
[1755242191104,0.9322,4642.8,4642.5,0.109]
[1755242191337,0.9302,4642.7,4642.5,0.109]
[1755242191643,0.4636,4642.7,4642.6,2.15395544]
[1755242192036,0.002,4642.8,4642.7,2.15391905]
[1755242192546,0.002,4642.8,4642.7,2.5956065]
[1755242192742,0.002,4642.8,4642.7,2.61714569]
[1755242193111,0.002,4642.8,4642.7,2.5956065]
[1755242193306,0.002,4642.8,4642.7,3.1456065]
[1755242193941,0.002,4642.8,4642.7,2.5956065]
[1755242195210,0.002,4642.8,4642.7,2.15391905]
[1755242196112,0.4656,4642.8,4642.7,2.15391905]
[1755242196942,0.9322,4642.8,4642.7,2.15391905]
[1755242198243,0.002,4642.8,4642.7,2.15391905]
[1755242198542,0.002,4642.8,4642.7,2.81191905]
[1755242198748,0.002,4642.8,4642.7,4.99390588]
[1755242199613,1e-08,4642.8,4642.7,8.81680588]
[1755242200929,1e-08,4642.8,4642.7,8.31990588]
[1755242201316,1e-08,4642.8,4642.7,8.63670588]
[1755242201712,1e-08,4642.8,4642.7,8.31990588]
[1755242202746,1e-08,4642.8,4642.7,5.58791905]
[1755242202945,0.46360001,4642.8,4642.7,2.26191905]
[1755242203344,1e-08,4642.8,4642.7,2.26191905]
[1755242203545,1e-08,4642.8,4642.7,2.81191905]
[1755242204233,1e-08,4642.8,4642.7,2.83345824]
[1755242204450,1e-08,4642.8,4642.7,5.03600899]
[1755242204755,1e-08,4642.8,4642.7,5.0144698]
[1755242206557,1e-08,4642.8,4642.7,2.81191905]
[1755242211153,1e-08,4642.8,4642.7,2.83345824]
[1755242211639,1e-08,4642.8,4642.7,2.81191905]
[1755242211850,1e-08,4642.8,4642.7,2.83345824]
[1755242212959,1e-08,4642.8,4642.7,2.81191905]
[1755242213269,1e-08,4642.8,4642.7,5.01584507]
[1755242213465,1e-08,4642.8,4642.7,4.99430588]
[1755242213829,1e-08,4642.8,4642.7,8.31430588]
[1755242214143,1e-08,4642.8,4642.7,5.58191905]
[1755242216161,1e-08,4642.8,4642.7,6.13191905]
[1755242217742,1e-08,4642.8,4642.7,10.38191905]
[1755242220775,0.002,4643.3,4643.2,2.70368711]
[1755242220776,1e-08,4643.3,4643.2,2.70368711]
[1755242221067,1e-08,4643.8,4643.7,2.70345521]
[1755242221240,1e-08,4643.8,4643.7,6.52668734]
[1755242221445,1e-08,4643.8,4643.7,6.61315279]
[1755242222665,0.45880001,4643.8,4643.7,2.74715279]
[1755242222911,0.90960001,4643.8,4643.7,2.26145521]
[1755242223556,0.90960001,4643.8,4643.7,0.108]
[1755242223730,0.90960001,4643.8,4643.7,2.26145521]
[1755242224769,0.90960001,4643.8,4643.7,0.108]
[1755242226136,0.90960001,4643.8,4643.6,2.15349225]
[1755242226331,0.9096,4643.7,4643.6,2.15349225]
[1755242227650,0.4588,4643.7,4643.6,2.26149225]
[1755242227842,0.9096,4643.7,4643.6,2.26149225]
[1755242228356,0.9096,4643.7,4643.6,0.108]
[1755242228687,0.9096,4643.7,4643.6,2.26150159]
[1755242234657,0.4588,4643.7,4643.6,2.26150159]
[1755242235081,0.9096,4643.7,4643.6,2.26150159]
[1755242237194,1e-08,4643.8,4643.7,2.15345521]
[1755242237696,0.90960001,4643.8,4643.7,2.15345521]
[1755242238273,0.90960001,4643.8,4643.6,2.26149607]
[1755242238480,0.9096,4643.7,4643.6,2.26149607]
[1755242238821,0.9096,4643.7,4643.6,2.26249607]
[1755242241405,0.4588,4643.7,4643.6,2.26249607]
[1755242241901,0.9428,4643.7,4643.6,2.26249607]
[1755242242103,1e-08,4643.8,4643.7,2.15345521]
[1755242242490,0.48400001,4643.8,4643.7,2.15345521]
[1755242242805,0.95860001,4643.8,4643.7,2.15345521]
[1755242244509,1e-08,4643.8,4643.7,2.15345521]
[1755242244829,1e-08,4643.8,4643.7,2.17498976]
[1755242245508,1e-08,4643.8,4643.7,2.70520832]
[1755242245885,1e-08,4643.8,4643.7,6.01620832]
[1755242246482,1e-08,4643.8,4643.7,6.56620832]
[1755242246715,1e-08,4643.8,4643.7,7.06310832]
[1755242247708,1e-08,4644.2,4643.7,7.06310832]
[1755242247989,1e-08,4644.2,4644.1,2.70326974]
[1755242248188,1e-08,4644.2,4644.1,6.12126974]
[1755242249102,1e-08,4644.2,4644.1,6.30136974]
[1755242249306,1e-08,4644.2,4644.1,6.12126974]
[1755242250084,1e-08,4644.2,4644.1,6.61816974]
[1755242250418,1e-08,4644.2,4644.1,8.82263378]
[1755242253798,1e-08,4644.2,4644.1,11.82263378]
[1755242254202,1e-08,4644.8,4644.7,2.70299158]
[1755242254529,1e-08,4644.8,4644.7,6.01299158]
[1755242254728,1e-08,4644.8,4644.7,6.12099158]
[1755242254931,1e-08,4644.8,4644.7,8.32545562]
[1755242255245,0.4766,4645.6,4645.1,0.55]
[1755242255246,0.002,4645.6,4645.1,0.55]
[1755242255414,0.4746,4646.4,4646.0,2.15238915]
[1755242255614,0.9586,4646.4,4646.0,5.57038915]
[1755242256245,0.9586,4646.4,4646.0,6.89267365]
[1755242257248,0.002,4646.5,4646.0,6.89267365]
[1755242257738,0.4746,4646.4,4646.0,6.89267365]
[1755242257937,0.4746,4646.4,4646.0,3.58267365]
[1755242258108,0.002,4646.5,4646.0,6.89267365]
[1755242259830,0.002,4646.5,4646.4,2.70220385]
[1755242260035,0.002,4646.5,4646.4,6.5516514]
[1755242260436,0.002,4646.5,4646.4,6.6596514]
[1755242261557,1e-08,4646.5,4646.4,6.6596514]
[1755242262446,0.95860001,4646.5,4646.4,6.6596514]
[1755242262651,0.95860001,4646.5,4646.4,6.11920385]
[1755242263426,0.47460001,4646.5,4646.4,6.11920385]
[1755242263633,0.95860001,4646.5,4646.4,6.11920385]
[1755242264553,0.95860001,4646.5,4646.4,5.56920385]
[1755242265421,0.95860001,4646.5,4646.4,2.26020385]
[1755242265634,0.95860001,4646.5,4646.4,2.15220385]
[1755242266442,0.95860001,4646.5,4646.2,0.108]
[1755242266637,0.9586,4646.4,4646.2,0.108]
[1755242266873,0.9586,4646.4,4646.3,2.15225017]
[1755242267341,0.9586,4646.4,4646.2,0.108]
[1755242267543,1e-08,4646.5,4645.2,2.15274095]
[1755242267544,0.9586,4646.3,4645.5,3.308]
[1755242267882,0.9586,4646.2,4645.9,0.108]
[1755242268039,0.9586,4646.1,4645.9,2.2603914]
[1755242268242,0.10800001,4646.5,4645.9,2.26043221]
[1755242268442,0.9586,4646.0,4645.9,2.26043221]
[1755242273890,0.002,4646.1,4646.0,2.15238915]
[1755242274067,0.002,4646.1,4646.0,5.46038915]
[1755242275164,0.002,4646.1,4646.0,2.15238915]
[1755242275473,0.4617,4646.1,4646.0,5.46038915]
[1755242275986,0.002,4646.1,4646.0,5.46038915]
[1755242277757,0.4617,4646.1,4646.0,5.46038915]
[1755242278094,0.4617,4646.1,4646.0,2.15238915]
[1755242278280,0.4617,4646.1,4646.0,5.46038915]
[1755242278681,0.9429,4646.1,4646.0,5.46038915]
[1755242278986,0.9429,4646.1,4646.0,6.23247129]
[1755242279492,0.9429,4646.1,4646.0,5.46038915]
[1755242279680,0.002,4646.1,4646.0,5.46038915]
[1755242283891,0.4617,4646.1,4646.0,5.46038915]
[1755242284286,0.002,4646.1,4646.0,5.46038915]
[1755242288598,0.4617,4646.1,4646.0,5.46038915]
[1755242288805,0.9429,4646.1,4645.9,0.108]
[1755242288990,0.4812,4646.0,4645.9,0.108]
[1755242289184,0.9409,4646.0,4645.9,0.108]
[1755242289710,0.9409,4646.0,4645.9,2.26043548]
[1755242290374,0.9409,4646.0,4645.9,0.108]
[1755242291704,0.9409,4646.0,4645.9,2.26043548]
[1755242292068,0.9409,4646.0,4645.9,0.108]
[1755242297116,0.9409,4646.0,4645.9,2.26043548]
[1755242298124,0.9409,4646.0,4645.9,0.108]
[1755242298559,0.002,4646.1,4646.0,2.15238915]
[1755242298815,0.002,4646.1,4646.0,2.81038915]
[1755242299925,1e-08,4646.5,4646.4,2.70220385]
[1755242300225,1e-08,4646.5,4646.4,6.11720385]
[1755242300386,1e-08,4646.6,4646.5,2.70215753]
[1755242300584,0.002,4647.1,4647.0,0.55]
[1755242300797,0.002,4647.1,4647.0,6.13764522]
[1755242300997,0.002,4647.1,4647.0,6.61302597]
[1755242301220,0.002,4647.1,4647.0,7.4895258]
[1755242301594,0.002,4647.1,4647.0,6.9926258]
[1755242301990,0.002,4647.1,4647.0,3.6856258]
[1755242302189,0.002,4647.1,4647.0,6.9926258]
[1755242304529,1e-08,4647.1,4647.0,10.4895258]
[1755242304729,0.002,4648.1,4647.0,10.4895258]
[1755242304730,0.002,4648.1,4647.7,0.55]
[1755242304931,0.002,4650.6,4649.0,2.15100021]
[1755242304932,0.1092,4649.7,4649.0,2.15100021]
[1755242305232,0.4515,4649.6,4649.2,2.15090768]
[1755242305431,0.1092,4649.7,4649.2,2.70090768]
[1755242305591,0.002,4649.7,4649.2,2.72241675]
[1755242305933,0.002,4649.7,4649.2,3.62604938]
[1755242306138,0.4535,4649.3,4649.2,3.07604938]
[1755242306336,0.002,4649.3,4649.2,3.09755845]
[1755242306695,0.002,4649.3,4649.2,3.64755845]
[1755242308113,0.002,4649.3,4649.2,3.62604938]
[1755242309118,0.002,4649.3,4649.2,6.93204938]
[1755242310412,0.4535,4649.3,4649.2,6.93204938]
[1755242311012,0.002,4649.3,4649.2,6.93204938]
[1755242313145,0.9313,4649.3,4649.2,6.38204938]
[1755242313741,0.9313,4649.3,4649.2,2.25810768]
[1755242314031,0.9313,4649.3,4649.2,5.56310768]
[1755242315104,0.4535,4649.3,4649.2,5.56310768]
[1755242315304,0.002,4649.3,4649.2,6.11310768]
[1755242315853,0.002,4649.3,4649.2,6.61000768]
[1755242316003,0.002,4649.3,4649.2,7.48610798]
[1755242316204,0.002,4649.9,4649.2,7.48610798]
[1755242316205,1e-08,4649.9,4649.3,3.55]
[1755242316432,0.002,4650.6,4650.2,2.70044514]
[1755242316747,1e-08,4650.3,4650.2,6.11164514]
[1755242317180,1e-08,4650.3,4650.2,6.42844514]
[1755242318056,1e-08,4650.3,4650.2,6.11164514]
[1755242318455,1e-08,4650.3,4650.2,9.11164514]
[1755242318778,0.002,4650.6,4650.5,2.15030641]
[1755242318980,0.002,4650.6,4650.5,5.45430641]
[1755242319141,1e-08,4650.6,4650.5,9.11150641]
[1755242319341,1e-08,4650.6,4650.5,9.60840641]
[1755242319564,1e-08,4650.6,4650.5,5.80750641]
[1755242319762,1e-08,4650.6,4650.5,6.93276428]
[1755242319971,1e-08,4650.6,4650.5,10.23676428]
[1755242320357,1e-08,4650.6,4650.5,7.23676428]
[1755242320869,0.92930001,4650.6,4650.5,3.38276428]
[1755242321070,0.92930001,4650.6,4650.5,5.56150641]
[1755242323439,0.92930001,4650.6,4650.5,0.1072]
[1755242325246,1.03650001,4650.6,4649.6,2.25790723]
[1755242325597,0.1072,4650.3,4649.6,0.1072]
[1755242325890,0.9293,4650.2,4649.6,0.1072]
[1755242326090,2.25763403,4650.3,4649.6,0.1072]
[1755242326382,0.9293,4650.1,4649.6,0.1072]
[1755242326767,2.25763403,4650.3,4649.6,0.1072]
[1755242326970,0.9293,4650.0,4649.6,2.257909]
[1755242327172,0.9293,4649.9,4649.6,2.257909]
[1755242327383,0.9293,4649.8,4649.6,2.257909]
[1755242327552,0.9293,4649.7,4649.6,2.257909]
[1755242327751,0.9293,4649.7,4649.6,0.1072]
[1755242327976,0.9293,4649.7,4649.2,0.1072]
[1755242328276,0.9293,4649.6,4649.2,2.258107]
[1755242328485,0.1072,4649.8,4649.3,2.15084824]
[1755242328671,0.4515,4649.5,4649.3,2.15084824]
[1755242328865,0.4515,4649.4,4649.3,2.15084824]
[1755242329069,0.9293,4649.4,4649.3,2.15084824]
[1755242331680,2.15050098,4650.1,4649.3,2.15084824]
[1755242331681,0.4515,4650.1,4649.7,2.15065691]
[1755242331846,2.25747063,4650.6,4649.8,2.15060879]
[1755242332051,0.9648,4650.0,4649.8,2.15060879]
[1755242332270,0.4932,4650.0,4649.9,2.15058388]
[1755242332469,0.4932,4650.0,4649.9,2.25778388]
[1755242332663,0.4932,4650.0,4649.9,0.1072]
[1755242332870,0.9648,4650.0,4649.9,0.1072]
[1755242334551,0.9648,4650.0,4649.9,2.25778388]
[1755242337190,0.9648,4650.0,4649.9,0.1072]
[1755242338383,0.9648,4650.0,4649.9,2.25778388]
[1755242339355,0.4716,4650.2,4649.9,0.1072]
[1755242339798,0.4716,4650.1,4649.9,0.1072]
[1755242340000,0.9648,4650.1,4649.9,0.1072]
[1755242340164,0.5,4650.4,4649.9,0.1072]
[1755242340366,0.9648,4650.0,4649.9,0.1072]
[1755242341072,0.9648,4650.0,4649.7,4.25]
[1755242341274,0.9648,4649.9,4649.7,4.25]
[1755242341476,0.9648,4649.8,4649.7,4.25]
[1755242342588,0.4716,4649.8,4649.7,4.25]
[1755242342790,0.4716,4649.8,4649.7,6.40067638]
[1755242343473,0.1072,4650.3,4649.7,6.40067638]
[1755242343699,0.1072,4650.3,4649.9,2.15056923]
[1755242343997,0.9716,4650.4,4650.0,2.15052616]
[1755242344167,0.9648,4650.2,4650.0,2.15052616]
[1755242344367,0.4716,4650.1,4650.0,2.15052616]
[1755242344779,0.4716,4650.1,4649.9,0.1072]
[1755242345069,0.9648,4650.0,4649.9,0.1072]
[1755242345268,0.9648,4650.0,4649.9,2.25778388]
[1755242345868,0.9648,4650.0,4649.9,0.1072]
[1755242346992,0.9932,4650.4,4649.9,2.25777095]
[1755242347196,0.4716,4650.3,4649.9,2.25777095]
[1755242347710,0.4716,4650.2,4649.9,0.1072]
[1755242349092,0.4716,4650.1,4649.9,0.1072]
[1755242349793,0.4716,4650.1,4649.9,2.2577646]
[1755242350311,0.5,4650.4,4650.0,0.1072]
[1755242350475,0.5,4650.4,4650.3,2.15039889]
[1755242350675,0.5,4650.4,4650.3,2.25759889]
[1755242352324,1e-08,4650.6,4650.5,2.15030641]
[1755242352894,0.47160001,4650.6,4650.5,2.15030641]
[1755242353207,0.96480001,4650.6,4650.3,0.1072]
[1755242353412,0.4932,4650.5,4650.3,0.1072]
[1755242353575,0.9648,4650.5,4650.3,0.1072]
[1755242353778,0.4932,4650.4,4650.3,0.1072]
[1755242353980,0.9648,4650.4,4650.3,0.1072]
[1755242355013,0.9648,4650.4,4650.3,2.25759889]
[1755242355014,0.4716,4650.4,4650.3,2.25759889]
[1755242355828,1e-08,4650.6,4650.3,2.25759889]
[1755242356244,1e-08,4650.6,4650.4,3.32350352]
[1755242356398,1e-08,4650.6,4650.5,2.15030641]
[1755242361704,1e-08,4650.6,4650.5,5.45230641]
[1755242364221,1e-08,4650.6,4650.5,9.70230641]
[1755242364420,1e-08,4650.6,4650.5,10.19920641]
[1755242364708,1e-08,4650.6,4650.5,11.34188671]
[1755242364909,1e-08,4650.6,4650.5,11.02508671]
[1755242365108,1e-08,4650.6,4650.5,11.34188671]
[1755242365640,1e-08,4650.6,4650.5,11.52198671]
[1755242365938,1e-08,4650.6,4650.5,11.02508671]
[1755242366942,1e-08,4650.6,4650.5,6.77508671]
[1755242372408,0.45210001,4650.6,4650.5,6.77508671]
[1755242372913,1e-08,4650.6,4650.5,6.77508671]
[1755242377454,0.45210001,4650.6,4650.5,6.77508671]
[1755242377952,0.91630001,4650.6,4650.5,6.77508671]
[1755242378531,0.45210001,4650.6,4650.5,6.77508671]
[1755242383165,0.91630001,4650.6,4650.5,6.77508671]
[1755242384124,1e-08,4650.6,4650.5,6.77508671]
[1755242386045,0.45210001,4650.6,4650.5,6.77508671]
[1755242388546,1e-08,4650.6,4650.5,6.77508671]
[1755242389253,0.45210001,4650.6,4650.5,6.77508671]
[1755242389566,0.91630001,4650.6,4650.5,6.77508671]
[1755242389724,0.45210001,4650.6,4650.5,6.77508671]
[1755242390072,0.91630001,4650.6,4650.5,6.77508671]
[1755242391355,0.45210001,4650.6,4650.5,6.77508671]
[1755242391658,1e-08,4650.6,4650.5,6.77508671]
[1755242392934,0.45310001,4650.6,4650.5,6.77508671]
[1755242396967,1e-08,4650.6,4650.5,6.77508671]
[1755242398192,0.45310001,4650.6,4650.5,6.77508671]
[1755242400474,1e-08,4650.6,4650.5,6.77508671]
[1755242400676,1e-08,4650.6,4650.5,20.80750534]
[1755242400852,1e-08,4650.6,4650.5,21.30440534]
[1755242401177,1e-08,4650.6,4650.5,7.32508671]
[1755242401340,1e-08,4650.6,4650.5,6.77108671]
[1755242402185,0.91910001,4650.6,4650.5,6.77108671]
[1755242402676,1e-08,4650.6,4650.5,6.77108671]
[1755242403578,0.45310001,4650.6,4650.5,6.77108671]
[1755242403778,1e-08,4650.6,4650.5,6.77108671]
[1755242404383,1e-08,4650.6,4650.5,6.77208671]
[1755242405784,1e-08,4650.6,4650.5,7.32208671]
[1755242413380,0.91910001,4650.6,4650.5,2.15130641]
[1755242413790,0.91910001,4650.6,4650.5,5.44830641]
[1755242420884,0.91910001,4650.6,4650.5,0.001]
[1755242422177,0.91910001,4650.6,4650.5,2.15130641]
[1755242423567,1e-08,4650.6,4650.5,5.55450641]
[1755242423763,1e-08,4650.6,4650.5,6.32724468]
[1755242425400,1e-08,4650.6,4650.5,6.87724468]
[1755242425603,1e-08,4651.1,4650.5,7.37414468]
[1755242425811,1e-08,4651.1,4651.0,2.80727525]
[1755242425991,1e-08,4651.1,4651.0,6.124776]
[1755242426309,1e-08,4651.1,4651.0,6.93076707]
[1755242431390,1e-08,4651.1,4651.0,20.4131857]
[1755242431595,1e-08,4651.1,4651.0,23.5932857]
[1755242431790,1e-08,4651.1,4651.0,23.4131857]
[1755242436489,1e-08,4651.1,4651.0,9.93076707]
[1755242438029,1e-08,4651.1,4651.0,6.63476707]
[1755242438330,0.44570001,4651.1,4651.0,9.92876707]
[1755242439528,1e-08,4651.1,4651.0,9.37876707]
[1755242439818,1e-08,4651.1,4651.0,2.25727525]
[1755242439819,0.90380001,4651.1,4651.0,2.25727525]
[1755242440388,0.90380001,4651.1,4651.0,0.1072]
[1755242440627,0.90380001,4651.1,4651.0,5.55127525]
[1755242441992,0.90380001,4651.1,4651.0,3.4012]
[1755242442410,0.90380001,4651.1,4651.0,0.1072]
[1755242443021,0.90380001,4651.1,4650.8,3.294]
[1755242443209,0.9038,4651.0,4650.5,5.44527022]
[1755242443406,0.9038,4651.0,4650.5,3.295]
[1755242443407,0.9038,4650.9,4650.5,3.295]
[1755242443618,0.1072,4651.0,4650.7,2.15019418]
[1755242443946,0.9038,4650.8,4650.6,2.15025046]
[1755242444118,0.1072,4651.0,4650.7,2.15021394]
[1755242444435,0.1072,4651.0,4650.7,2.15020235]
[1755242444633,0.1072,4651.0,4650.5,5.44530292]
[1755242444634,0.1072,4651.0,4650.8,2.15015134]
[1755242444935,0.9038,4650.9,4650.8,2.15015134]
[1755242445626,0.9038,4650.9,4650.7,2.1502056]
[1755242445804,0.9038,4650.8,4650.7,2.15019847]
[1755242447106,0.9038,4650.8,4650.5,2.15130122]
[1755242447322,0.9038,4650.7,4650.5,0.001]
[1755242447702,0.1072,4651.0,4650.6,2.15022267]
[1755242448203,0.91496281,4650.9,4650.5,0.001]
[1755242448400,2.15018217,4650.8,4650.5,0.001]
[1755242448594,0.1072,4650.6,4650.5,0.001]
[1755242448830,0.11836281,4650.6,4650.5,0.001]
[1755242449008,1.011,4650.6,4650.5,0.001]
[1755242451833,1.02216281,4650.6,4650.5,0.001]
[1755242452198,3.17242299,4650.6,4650.5,0.001]
[1755242452706,6.17242299,4650.6,4650.5,0.001]
[1755242452906,6.16126018,4650.6,4650.5,0.001]
[1755242457807,12.58239718,4650.6,4650.5,0.001]
[1755242458702,12.58239718,4650.6,4650.3,0.001]
[1755242458703,0.55,4650.4,4650.3,0.001]
[1755242458929,12.13265246,4650.4,4650.3,0.001]
[1755242459126,13.05478965,4650.4,4650.3,0.001]
[1755242460875,13.51490545,4650.4,4650.3,1e-08]
[1755242461563,13.51490545,4650.4,4650.0,0.001]
[1755242461564,2.70049138,4650.1,4650.0,0.001]
[1755242461717,5.70058388,4649.9,4649.8,0.001]
[1755242462050,12.12172088,4649.9,4649.8,0.001]
[1755242462345,13.05502088,4649.9,4649.8,0.001]
[1755242462528,2.15067638,4649.7,4649.6,1e-08]
[1755242462859,5.70076889,4649.5,4648.9,0.001]
[1755242463058,25.60432452,4649.5,4648.9,0.001]
[1755242463264,2.70090768,4649.2,4648.9,0.001]
[1755242463418,15.42620749,4649.2,4648.9,0.001]
[1755242463624,16.34834468,4649.2,4648.9,0.001]
[1755242464127,9.92720768,4649.2,4648.9,0.001]
[1755242464459,16.34834468,4649.2,4648.9,0.001]
[1755242465644,2.70104648,4648.9,4646.8,0.108]
[1755242465963,29.01596492,4648.9,4646.8,2.15200151]
[1755242466165,23.51696511,4648.9,4646.7,0.3168]
[1755242466320,30.09795865,4648.9,4646.7,0.4969]
[1755242467069,30.09795865,4648.9,4646.7,2.64896119]
[1755242467275,30.18417965,4648.9,4646.9,2.15196488]
[1755242467463,30.18417965,4648.9,4646.8,2.15200669]
[1755242467660,30.18417965,4648.9,4646.9,2.15196755]
[1755242468963,30.18417965,4648.9,4647.0,2.15191553]
[1755242471479,30.18417965,4648.9,4647.1,0.1801]
[1755242473372,30.18417965,4648.9,4647.1,0.4969]
[1755242473564,30.18417965,4648.9,4648.8,1e-08]
[1755242473565,30.64266081,4648.9,4648.8,1e-08]
[1755242473762,5.70137042,4648.2,4647.8,0.001]
[1755242474083,22.58398905,4648.2,4647.8,0.001]
[1755242474283,29.46353451,4648.2,4647.8,0.001]
[1755242474582,30.48306751,4648.2,4647.8,0.001]
[1755242475384,3.55,4647.9,4647.8,0.001]
[1755242475687,2.15160186,4647.7,4647.6,1e-08]
[1755242475985,28.3603203,4647.7,4647.6,1e-08]
[1755242476170,28.80756595,4647.7,4647.6,1e-08]
[1755242476376,29.74086595,4647.7,4647.6,1e-08]
[1755242476571,30.05766595,4647.7,4647.6,1e-08]
[1755242476777,26.76366595,4647.7,4647.6,1e-08]
[1755242477101,14.97393886,4647.7,4647.6,1e-08]
[1755242477453,15.43244048,4647.7,4647.6,1e-08]
[1755242478270,15.87444048,4647.7,4647.6,1e-08]
[1755242478470,16.36574048,4647.7,4647.6,1e-08]
[1755242478788,15.87444048,4647.7,4647.6,1e-08]
[1755242478979,15.43244048,4647.7,4647.6,1e-08]
[1755242482001,5.61010348,4647.7,4647.6,1e-08]
[1755242482203,5.44560186,4647.7,4647.6,1e-08]
[1755242482386,3.294,4647.7,4647.6,1e-08]
[1755242482697,5.44560186,4647.7,4647.6,1e-08]
[1755242482865,3.4012,4647.7,4647.6,1e-08]
[1755242483260,8.55280186,4647.7,4647.6,1e-08]
[1755242483465,9.01186134,4647.7,4647.6,1e-08]
[1755242483875,8.55280186,4647.7,4647.6,1e-08]
[1755242484171,6.4012,4647.7,4647.6,0.31680001]
[1755242484371,6.86073274,4647.7,4647.6,1e-08]
[1755242484775,3.4002,4647.7,4647.6,0.49690001]
[1755242484974,3.4002,4647.7,4647.6,0.76186]
[1755242485579,3.4002,4647.7,4647.6,2.91350816]
[1755242485777,0.1072,4648.0,4647.6,0.76186]
[1755242485979,3.293,4647.9,4647.7,2.15156501]
[1755242486180,0.1072,4648.0,4647.7,2.15159797]
[1755242486381,3.293,4647.9,4647.8,0.4969]
[1755242486763,3.293,4647.9,4647.6,1e-08]
[1755242486967,0.1072,4647.7,4647.6,1e-08]
[1755242487302,6.4002,4647.7,4647.6,1e-08]
[1755242487463,6.86070034,4647.7,4647.6,1e-08]
[1755242488768,6.86070034,4647.7,4647.6,0.49690001]
[1755242489069,3.293,4647.7,4647.6,2.91351096]
[1755242489285,0.1092,4648.2,4647.8,2.1515399]
[1755242489481,3.75422404,4648.1,4647.8,2.1515399]
[1755242489681,3.75422404,4648.1,4647.6,0.3721628]
[1755242489682,0.46122457,4648.0,4647.6,0.10720001]
[1755242489881,2.15156582,4647.8,4647.6,1e-08]
[1755242490080,3.293,4647.7,4647.6,1e-08]
[1755242490484,3.75420155,4647.7,4647.6,1e-08]
[1755242490792,9.34756622,4647.7,4647.6,1e-08]
[1755242491113,9.79330341,4647.7,4647.6,1e-08]
[1755242491322,16.98210324,4647.7,4647.6,1e-08]
[1755242491675,16.52520324,4647.7,4647.6,1e-08]
[1755242491871,13.23220324,4647.7,4647.6,1e-08]
[1755242492107,6.29658314,4647.7,4647.6,1e-08]
[1755242492418,9.58958314,4647.7,4647.6,1e-08]
[1755242493173,10.02018314,4647.7,4647.6,1e-08]
[1755242493517,9.58983004,4647.7,4647.6,1e-08]
[1755242494314,6.29683004,4647.7,4647.6,1e-08]
[1755242494469,9.58983004,4647.7,4647.6,1e-08]
[1755242495077,10.47733004,4647.7,4647.6,1e-08]
[1755242495271,9.90050341,4647.7,4647.6,1e-08]
[1755242495471,10.47733004,4647.7,4647.6,1e-08]
[1755242496304,9.90050341,4647.7,4647.6,1e-08]
[1755242497417,10.47736148,4647.7,4647.6,1e-08]
[1755242498391,16.87164041,4647.7,4647.6,1e-08]
[1755242498921,16.87164041,4647.7,4647.4,0.001]
[1755242498922,5.70169445,4647.5,4647.4,1e-08]
[1755242499079,15.876033,4647.5,4647.4,1e-08]
[1755242499289,16.763533,4647.5,4647.4,1e-08]
[1755242501218,17.53207754,4647.5,4647.4,1e-08]
[1755242502414,17.82516103,4647.5,4647.4,1e-08]
[1755242502724,17.53207754,4647.5,4647.4,1e-08]
[1755242503616,2.15183336,4647.2,4647.1,1e-08]
[1755242503804,15.44453472,4647.2,4647.1,1e-08]
[1755242504013,16.32087191,4647.2,4647.1,1e-08]
[1755242504388,16.8969111,4647.2,4647.1,1e-08]
[1755242504587,2.1520649,4646.7,4646.6,0.001]
[1755242504806,14.87636471,4646.7,4646.6,0.001]
[1755242505141,16.87190345,4646.7,4646.6,0.001]
[1755242505348,12.69240345,4646.7,4646.6,0.001]
[1755242505641,15.98440345,4646.7,4646.6,0.001]
[1755242506209,16.41500345,4646.7,4646.6,0.001]
[1755242506431,15.98440345,4646.7,4646.6,0.001]
[1755242507439,16.87190345,4646.7,4646.6,0.001]
[1755242509421,16.4107019,4646.7,4646.6,0.001]
[1755242512336,16.57532758,4646.7,4646.6,0.001]
[1755242513476,5.15243548,4645.9,4645.8,1e-08]
[1755242513751,14.86557248,4645.9,4645.8,1e-08]
[1755242517340,11.57357248,4645.9,4645.8,1e-08]
[1755242517874,11.57357248,4645.9,4645.8,0.31780001]
[1755242517875,3.0,4645.9,4645.8,0.31780001]
[1755242518173,8.44443548,4645.9,4645.8,0.31780001]
[1755242518466,8.44443548,4645.9,4645.8,1e-08]
[1755242519835,5.15243548,4645.9,4645.8,1e-08]
[1755242520175,8.44443548,4645.9,4645.8,1e-08]
[1755242520379,5.33262568,4646.7,4645.8,1e-08]
[1755242520545,5.168,4646.7,4645.8,0.49990001]
[1755242520739,3.292,4646.6,4645.9,0.4999]
[1755242521032,3.292,4646.6,4646.0,0.76513672]
[1755242521238,3.292,4646.6,4646.3,2.15224541]
[1755242521465,3.292,4646.6,4645.9,2.15243548]
[1755242521766,3.292,4646.6,4646.1,2.15234282]
[1755242521979,3.292,4646.6,4646.2,2.65218591]
[1755242522158,3.292,4646.6,4646.0,2.15234347]
[1755242522342,3.292,4646.6,4646.0,0.4304779]
[1755242522668,3.292,4646.6,4646.1,2.65224085]
[1755242522841,3.292,4646.6,4646.2,2.65218553]
[1755242523164,3.292,4646.6,4646.3,0.4999]
[1755242523369,3.4,4646.6,4646.0,2.15238336]
[1755242523743,0.01116281,4646.5,4645.9,2.26043236]
[1755242523947,3.292,4646.4,4645.9,2.26043236]
[1755242524176,0.01116281,4646.3,4645.9,2.26043236]
[1755242524474,3.292,4646.2,4645.9,0.4258]
[1755242524768,3.292,4646.2,4646.1,2.15234282]
[1755242524959,3.292,4646.2,4646.0,2.65227607]
[1755242525551,3.292,4646.2,4646.0,2.47017607]
[1755242526068,0.108,4646.6,4646.1,2.65224282]
[1755242526274,0.002,4647.1,4646.2,0.4999]